fUST/lending_fUST_20250816
["ID","MTS","AMOUNT","RATE_DAILY","PERIOD"]
[379622041,1755347463346,-480.0,0.00023013,3]
[379622042,1755347463355,-480.0,0.00023013,3]
[379622043,1755347463364,-480.0,0.00023013,3]
[379622044,1755347463374,-480.0,0.00023013,3]
[379622045,1755347463383,-302.94688,0.00023013,7]
[379622046,1755347463393,-364.676974,0.00023013,7]
[379622047,1755347463402,-2880.83,0.00023013,3]
[379622048,1755347463412,-480.0,0.00023013,3]
[379622049,1755347463427,-302.94688,0.00023013,7]
[379622050,1755347463438,-364.676974,0.00023013,7]
[379622051,1755347463449,-1620.5,0.00023013,3]
[379622052,1755347463460,-400.0,0.00023013,3]
[379622053,1755347463476,-2655.77,0.00023013,3]
[379622054,1755347463486,-480.0,0.00023013,3]
[379622055,1755347463502,-480.0,0.00023013,3]
[379622056,1755347463513,-285.38648774,0.00023013,3]
[379622057,1755347463524,-480.0,0.00023013,3]
[379622058,1755347463533,-1252.72,0.00023013,3]
[379622059,1755347463544,-480.0,0.00023013,3]
[379622060,1755347463554,-480.0,0.00023013,3]
[379622061,1755347463566,-480.0,0.00023013,3]
[379622062,1755347463576,-480.0,0.00023013,3]
[379622063,1755347463586,-480.0,0.00023013,3]
[379622064,1755347463597,-480.0,0.00023013,3]
[379622065,1755347463606,-229.46668651,0.00023013,3]
[379622066,1755347463714,-480.0,0.00023013,3]
[379622067,1755347463725,-480.0,0.00023013,3]
[379622068,1755347463735,-548.08,0.00023013,3]
[379622069,1755347463745,-480.0,0.00023013,3]
[379622070,1755347463755,-158.424063,0.00023013,7]
[379622071,1755347463766,-480.0,0.00023013,3]
[379622072,1755347463776,-380.0,0.00023013,3]
[379622073,1755347463786,-1164.66,0.00023013,3]
[379622074,1755347463796,-480.0,0.00023013,3]
[379622075,1755347463806,-480.0,0.00023013,3]
[379622076,1755347463816,-262.23932036,0.00023013,3]
[379622077,1755347463826,-480.0,0.00023013,3]
[379622078,1755347463836,-480.0,0.00023013,3]
[379622079,1755347463847,-480.0,0.00023013,3]
[379622080,1755347463857,-480.0,0.00023013,3]
[379622081,1755347463867,-480.0,0.00023013,3]
[379622082,1755347463878,-5019.98,0.00023013,3]
[379622083,1755347463888,-480.0,0.00023013,3]
[379622084,1755347463898,-480.0,0.00023013,3]
[379622085,1755347463908,-480.0,0.00023013,3]
[379622086,1755347463920,-480.0,0.00023013,3]
[379622087,1755347463930,-480.0,0.00023013,3]
[379622088,1755347463940,-480.0,0.00023013,3]
[379622089,1755347463950,-534.66,0.00023013,3]
[379622090,1755347463959,-380.0,0.00023013,3]
[379622091,1755347463969,-285.97101288,0.00023013,3]
[379622092,1755347464154,-379.99898712,0.00023013,3]
[379622093,1755347464164,-202.234014,0.00023013,7]
[379622094,1755347464177,-837.5,0.00023013,3]
[379622095,1755347464187,-151.0,0.00023013,7]
[379622096,1755347464197,-480.0,0.00023013,3]
[379622097,1755347464207,-202.234014,0.00023013,7]
[379622098,1755347464217,-480.0,0.00023013,3]
[379622099,1755347464227,-1309.42,0.00023013,3]
[379622100,1755347464236,-1181.65,0.00023013,3]
[379622101,1755347464246,-151.0,0.00023013,7]
[379622102,1755347464255,-500.0,0.00023013,3]
[379622103,1755347464263,-567.4,0.00023013,3]
[379622104,1755347464273,-921.78,0.00023013,3]
[379622105,1755347464283,-551.9,0.00023013,3]
[379622106,1755347464292,-246.364195,0.00023013,7]
[379622107,1755347464302,-400.0,0.00023013,3]
[379622108,1755347464312,-1027.33,0.00023013,3]
[379622109,1755347464322,-400.0,0.00023013,3]
[379622110,1755347464331,-1605.97,0.00023013,3]
[379622111,1755347464340,-400.0,0.00023013,3]
[379622112,1755347464350,-480.0,0.00023013,3]
[379622113,1755347464360,-480.0,0.00023013,3]
[379622114,1755347464369,-847.83,0.00023013,3]
[379622115,1755347464378,-480.0,0.00023013,3]
[379622116,1755347464388,-480.0,0.00023013,3]
[379622117,1755347464398,-382.2950619,0.00023013,3]
[379622118,1755347464407,-480.0,0.00023013,3]
[379622119,1755347464422,-1315.29,0.00023013,3]
[379622120,1755347464432,-1929.72,0.00023013,3]
[379622121,1755347464441,-723.73,0.00023013,3]
[379622122,1755347464452,-909.19,0.00023013,3]
[379622123,1755347464462,-2212.27,0.00023013,3]
[379622124,1755347464471,-480.0,0.00023013,3]
[379622125,1755347464482,-480.0,0.00023013,3]
[379622126,1755347464491,-480.0,0.00023013,3]
[379622127,1755347464500,-17.89372798,0.00023013,3]
[379622128,1755347466351,1837.94230089,0.000199,2]
[379622130,1755347483969,-337.27952155,0.00020408,2]
[379622131,1755347486328,-337.26366115,0.00020408,2]
[379622133,1755347641527,252.2138076,0.000199,2]
[379622134,1755347641554,480.0,0.000199,2]
[379622135,1755347641581,321.45320735,0.000199,2]
[379622136,1755347641606,709.45889884,0.000199,2]
[379622140,1755347821608,1704.35504991,0.000199,2]
[379622142,1755347844604,5000.0,0.0002,2]
[379622143,1755347886027,8019.4866768,0.00019749,2]
[379622144,1755347958324,200.41343,0.00019759,2]
[379622148,1755348005852,1634.11031101,0.000199,2]
[379622152,1755348052152,5000.0,0.0002,2]
[379622168,1755348176398,1711.07045633,0.000199,2]
[379622169,1755348176423,1381.22279193,0.000199,2]
[379622176,1755348224473,1000.0,0.00028767,120]
[379622184,1755348261009,5000.0,0.0002,2]
[379622196,1755348347100,-4631.67935366,0.00020204,2]
[379622197,1755348348299,2995.82850936,0.000199,2]
[379622209,1755348410740,242.31225,0.00013699,2]
[379622210,1755348411658,-152.0,0.00020187,2]
[379622211,1755348413267,-90.31225,0.00020187,2]
[379622216,1755348469305,5000.0,0.0002,2]
[379622226,1755348519614,2907.56400007,0.000199,2]
[379622270,1755348632424,-5000.0,0.00020204,2]
[379622272,1755348632604,-780.2512188,0.00020408,2]
[379622273,1755348632616,-1074.74166481,0.00020408,2]
[379622274,1755348632627,-1052.57111645,0.00020408,2]
[379622275,1755348632636,-600.0,0.00020486,2]
[379622277,1755348632645,-300.0,0.00020672,2]
[379622278,1755348632655,-2219.21013613,0.00020673,2]
[379622279,1755348632664,-266.0,0.000207,2]
[379622281,1755348632673,-531.45023466,0.000207,2]
[379622283,1755348632682,-1782.02159341,0.000207,2]
[379622284,1755348632691,-271.7049416,0.00020714,2]
[379622285,1755348632700,-371.79953728,0.00020773,2]
[379622286,1755348632710,-500.0,0.00020773,2]
[379622287,1755348632720,-503.49952273,0.00020773,2]
[379622288,1755348632729,-500.54466651,0.00020773,2]
[379622289,1755348632739,-502.31821669,0.00020773,2]
[379622290,1755348632749,-500.67126196,0.00020773,2]
[379622291,1755348632758,-500.0,0.00020773,2]
[379622292,1755348632768,-500.0,0.00020773,2]
[379622293,1755348632780,-506.81297577,0.00020773,2]
[379622294,1755348632789,-500.0,0.00020773,2]
[379622295,1755348632799,-500.33608922,0.00020773,2]
[379622296,1755348632808,-491.45722278,0.00020773,2]
[379622297,1755348632818,-500.0,0.00020773,2]
[379622298,1755348632828,-444.08914728,0.00020773,2]
[379622299,1755348632837,-379.49551042,0.00020773,2]
[379622300,1755348632853,-120.50448958,0.00020773,2]
[379622301,1755348632863,-343.1592784,0.00020773,2]
[379622302,1755348632874,-160.22402131,0.00020773,2]
[379622303,1755348632883,-171.89024286,0.00020773,2]
[379622304,1755348632893,-367.6759429,0.00020773,2]
[379622305,1755348635413,5000.0,0.0002,2]
[379622306,1755348638402,-132.3240571,0.00020773,2]
[379622307,1755348638411,-500.0,0.00020773,2]
[379622308,1755348638420,-503.67713468,0.00020773,2]
[379622309,1755348638430,-500.27973412,0.00020773,2]
[379622310,1755348638440,-500.0,0.00020773,2]
[379622311,1755348638449,-155.67919301,0.00020773,2]
[379622312,1755348638459,-158.18275083,0.00020773,2]
[379622313,1755348638468,-500.77954074,0.00020773,2]
[379622314,1755348638477,-500.0,0.00020773,2]
[379622316,1755348638486,-500.0,0.00020773,2]
[379622317,1755348638495,-502.24473519,0.00020773,2]
[379622318,1755348638504,-500.0,0.00020773,2]
[379622319,1755348638514,-500.0,0.00020773,2]
[379622320,1755348638524,-516.93717912,0.00020773,2]
[379622321,1755348638534,-503.31174335,0.00020773,2]
[379622322,1755348638543,-501.13326629,0.00020773,2]
[379622323,1755348638552,-500.23855586,0.00020773,2]
[379622324,1755348638562,-500.0,0.00020773,2]
[379622325,1755348638571,-500.0,0.00020773,2]
[379622326,1755348638581,-500.0,0.00020773,2]
[379622327,1755348638590,-500.0,0.00020773,2]
[379622328,1755348638599,-501.80363941,0.00020773,2]
[379622329,1755348638608,-500.0,0.00020773,2]
[379622330,1755348638618,-500.0,0.00020773,2]
[379622331,1755348638627,-500.0,0.00020773,2]
[379622332,1755348638636,-502.67401466,0.00020773,2]
[379622333,1755348638645,-500.0,0.00020773,2]
[379622334,1755348638655,-160.28486328,0.00020773,2]
[379622335,1755348638664,-500.0,0.00020773,2]
[379622336,1755348638673,-500.93428285,0.00020773,2]
[379622337,1755348638682,-500.0,0.00020773,2]
[379622338,1755348638691,-500.0,0.00020773,2]
[379622339,1755348638701,-500.0,0.00020789,2]
[379622340,1755348638710,-194.72859769,0.00020789,2]
[379622341,1755348638719,-370000.0,0.0002079,2]
[379622342,1755348638728,-151.0,0.000208,3]
[379622343,1755348638737,-1000.0,0.00020889,2]
[379622344,1755348638746,-473.81,0.00020889,2]
[379622345,1755348638755,-2907.56400006,0.00020916,2]
[379622346,1755348638764,-100000.0,0.0002099,2]
[379622347,1755348638778,-151.0,0.00021,4]
[379622348,1755348638787,-756.33597258,0.00021,2]
[379622349,1755348638797,-521.96,0.00021012,2]
[379622350,1755348638807,-3022.31854644,0.00021015,2]
[379622351,1755348638818,-17842.522448,0.00021018,2]
[379622352,1755348638828,-531.45023464,0.00021048,2]
[379622353,1755348638837,-151.0,0.000211,3]
[379622354,1755348638847,-413.0,0.00021159,2]
[379622355,1755348638857,-336.0,0.00021207,2]
[379622356,1755348638866,-215.68093138,0.00021207,2]
[379622357,1755348638876,-528.38334358,0.00021207,2]
[379622358,1755348638886,-462.1417622,0.00021215,2]
[379622359,1755348638895,-160.0,0.00021219,2]
[379622360,1755348638905,-413.0,0.00021234,2]
[379622361,1755348638915,-151.0,0.000213,4]
[379622362,1755348638924,-503.40782288,0.00021321,2]
[379622363,1755348638934,-779.77128614,0.00021321,2]
[379622364,1755348638943,-198.95255747,0.00021321,2]
[379622365,1755348638952,-396.9245608,0.00021321,2]
[379622366,1755348638962,-1000.0,0.00021321,2]
[379622368,1755348638970,-1000.0,0.00021321,2]
[379622370,1755348638980,-669.13767931,0.00021321,2]
[379622372,1755348638989,-238.06044461,0.00021321,2]
[379622374,1755348638998,-1000.0,0.00021321,2]
[379622376,1755348639007,-1101.50920272,0.00021321,2]
[379622378,1755348639016,-502.20200351,0.00021321,2]
[379622380,1755348639025,-500.0,0.00021321,2]
[379622382,1755348639035,-1009.59193956,0.00021321,2]
[379622384,1755348639044,-1000.0,0.00021321,2]
[379622386,1755348639053,-1000.0,0.00021321,2]
[379622388,1755348639062,-1000.0,0.00021321,2]
[379622390,1755348639071,-1000.0,0.00021321,2]
[379622392,1755348639081,-1001.07757065,0.00021321,2]
[379622394,1755348639089,-1000.0,0.00021321,2]
[379622396,1755348639099,-1003.20756038,0.00021321,2]
[379622398,1755348639108,-983.75222637,0.00021321,2]
[379622400,1755348639117,-168.0,0.00021395,2]
[379622402,1755348639126,-531.45023464,0.00021396,2]
[379622404,1755348639135,-2907.56400006,0.00021424,2]
[379622406,1755348639145,-151.0,0.000215,4]
[379622408,1755348639154,-600.0,0.00021582,2]
[379622410,1755348639163,-151.0,0.000216,4]
[379622412,1755348639172,-413.0,0.00021662,2]
[379622414,1755348639181,-2219.21013611,0.00021663,2]
[379622416,1755348639191,-1782.0215934,0.0002167,2]
[379622418,1755348639200,-413.0,0.00021719,2]
[379622420,1755348639210,-531.45023464,0.00021743,2]
[379622422,1755348639219,-168.0,0.0002175,2]
[379622424,1755348639229,-151.0,0.000218,3]
[379622426,1755348639239,-168.0,0.00021802,2]
[379622428,1755348639248,-1000.0,0.00021817,2]
[379622430,1755348639257,-1005.63349145,0.00021868,2]
[379622432,1755348639267,-1116.87918414,0.00021868,2]
[379622434,1755348639276,-1500.0,0.00021868,2]
[379622436,1755348639286,-1500.0,0.00021868,2]
[379622438,1755348639295,-1500.0,0.00021868,2]
[379622440,1755348639304,-1500.0,0.00021868,2]
[379622442,1755348639313,-1500.0,0.00021868,2]
[379622444,1755348639322,-251.21384387,0.00021868,2]
[379622446,1755348639331,-480.0,0.00021917,3]
[379622448,1755348639340,-480.0,0.00021917,3]
[379622450,1755348639349,-460.0,0.00021917,3]
[379622452,1755348639358,-480.0,0.00021917,3]
[379622454,1755348639368,-337.38953547,0.00021917,3]
[379622456,1755348639377,-480.0,0.00021917,3]
[379622458,1755348639387,-373.09673767,0.00021917,3]
[379622460,1755348639395,-480.0,0.00021917,3]
[379622462,1755348639405,-480.0,0.00021917,3]
[379622464,1755348639414,-480.0,0.00021917,3]
[379622466,1755348639423,-480.0,0.00021917,3]
[379622468,1755348639432,-403.21782827,0.00021917,3]
[379622469,1755348639441,-480.0,0.00021917,3]
[379622471,1755348639449,-480.0,0.00021917,3]
[379622472,1755348639458,-480.0,0.00021917,3]
[379622473,1755348639467,-480.0,0.00021917,3]
[379622474,1755348639477,-480.0,0.00021917,3]
[379622475,1755348639486,-480.0,0.00021917,3]
[379622476,1755348639495,-188.35510715,0.00021917,3]
[379622477,1755348639504,-351.58864699,0.00021917,3]
[379622478,1755348639513,-480.0,0.00021917,3]
[379622480,1755348639523,-480.0,0.00021917,3]
[379622482,1755348639532,-599.71489032,0.00021917,3]
[379622483,1755348639542,-480.0,0.00021917,3]
[379622484,1755348639551,-480.0,0.00021917,3]
[379622485,1755348639561,-400.0,0.00021917,3]
[379622486,1755348639571,-480.0,0.00021917,3]
[379622487,1755348639580,-480.0,0.00021917,3]
[379622488,1755348639589,-480.0,0.00021917,3]
[379622489,1755348639599,-480.0,0.00021917,3]
[379622490,1755348639608,-480.0,0.00021917,3]
[379622491,1755348639618,-400.0,0.00021917,3]
[379622492,1755348639627,-391.25872362,0.00021917,3]
[379622493,1755348639636,-480.0,0.00021917,3]
[379622495,1755348639645,-480.0,0.00021917,3]
[379622497,1755348639655,-480.0,0.00021917,3]
[379622498,1755348639664,-480.0,0.00021917,3]
[379622499,1755348639673,-482.74680707,0.00021917,3]
[379622500,1755348639683,-480.0,0.00021917,3]
[379622501,1755348639692,-470.29744571,0.00021917,3]
[379622503,1755348639702,-480.0,0.00021917,3]
[379622504,1755348639711,-480.0,0.00021917,3]
[379622505,1755348639720,-464.83018892,0.00021917,3]
[379622506,1755348639729,-480.0,0.00021917,3]
[379622507,1755348639738,-480.0,0.00021917,3]
[379622508,1755348639748,-480.0,0.00021917,3]
[379622509,1755348639757,-538.55565945,0.00021917,3]
[379622510,1755348639767,-217.99615416,0.00021917,3]
[379622511,1755348639780,-480.0,0.00021917,3]
[379622512,1755348639790,-480.0,0.00021917,3]
[379622513,1755348639799,-786.12,0.00021917,3]
[379622514,1755348639808,-480.0,0.00021917,3]
[379622515,1755348639818,-480.0,0.00021917,3]
[379622516,1755348639827,-480.0,0.00021917,3]
[379622517,1755348639836,-480.0,0.00021917,3]
[379622518,1755348639846,-480.0,0.00021917,3]
[379622519,1755348639858,-461.78775046,0.00021917,3]
[379622520,1755348639868,-480.0,0.00021917,3]
[379622521,1755348639877,-480.0,0.00021917,3]
[379622522,1755348639886,-678.05,0.00021917,3]
[379622523,1755348639896,-316.09694819,0.00021917,3]
[379622525,1755348639906,-480.0,0.00021917,3]
[379622526,1755348639915,-150.19365128,0.00021917,3]
[379622527,1755348639925,-480.0,0.00021917,3]
[379622528,1755348639934,-480.0,0.00021917,3]
[379622529,1755348639944,-229.08230201,0.00021917,3]
[379622530,1755348639954,-480.0,0.00021917,3]
[379622531,1755348639963,-610.49129169,0.00021917,3]
[379622532,1755348639972,-480.0,0.00021917,3]
[379622533,1755348639982,-299.19139622,0.00021917,3]
[379622534,1755348639992,-480.0,0.00021917,3]
[379622535,1755348640001,-480.0,0.00021917,3]
[379622536,1755348640011,-480.0,0.00021917,3]
[379622537,1755348640020,-480.0,0.00021917,3]
[379622538,1755348640029,-480.0,0.00021917,3]
[379622539,1755348640184,-427.16410136,0.00021917,3]
[379622540,1755348640195,-480.0,0.00021917,3]
[379622541,1755348640205,-2582.92,0.00021917,3]
[379622542,1755348640215,-480.0,0.00021917,3]
[379622543,1755348640224,-480.0,0.00021917,3]
[379622544,1755348640234,-460.0,0.00021917,3]
[379622545,1755348640243,-445.99105317,0.00021917,3]
[379622546,1755348640253,-480.0,0.00021917,3]
[379622547,1755348640262,-480.0,0.00021917,3]
[379622548,1755348640271,-480.0,0.00021917,3]
[379622549,1755348640280,-480.0,0.00021917,3]
[379622550,1755348640289,-3365.13,0.00021917,3]
[379622551,1755348640298,-480.0,0.00021917,3]
[379622552,1755348640307,-480.0,0.00021917,3]
[379622553,1755348640316,-311.66502719,0.00021917,3]
[379622554,1755348640325,-480.0,0.00021917,3]
[379622555,1755348640334,-480.0,0.00021917,3]
[379622556,1755348640343,-480.0,0.00021917,3]
[379622557,1755348640352,-480.0,0.00021917,3]
[379622558,1755348640361,-480.0,0.00021917,3]
[379622559,1755348640370,-480.0,0.00021917,3]
[379622560,1755348640379,-733.38,0.00021917,3]
[379622561,1755348640388,-480.0,0.00021917,3]
[379622562,1755348640397,-460.0,0.00021917,3]
[379622563,1755348640407,-480.0,0.00021917,3]
[379622564,1755348640416,-480.0,0.00021917,3]
[379622565,1755348640425,-341.23610363,0.00021917,3]
[379622566,1755348640435,-480.0,0.00021917,3]
[379622567,1755348640444,-480.0,0.00021917,3]
[379622568,1755348640453,-480.0,0.00021917,3]
[379622569,1755348640462,-480.0,0.00021917,3]
[379622570,1755348640471,-424.01186715,0.00021917,3]
[379622571,1755348640481,-480.0,0.00021917,3]
[379622572,1755348640490,-480.0,0.00021917,3]
[379622573,1755348640499,-480.0,0.00021917,3]
[379622574,1755348640508,-480.0,0.00021917,3]
[379622575,1755348640517,-480.0,0.00021917,3]
[379622576,1755348640526,-480.0,0.00021917,3]
[379622577,1755348640535,-480.0,0.00021917,3]
[379622578,1755348640544,-480.0,0.00021917,3]
[379622579,1755348640553,-480.0,0.00021917,3]
[379622580,1755348640563,-480.0,0.00021917,3]
[379622581,1755348640572,-480.0,0.00021917,3]
[379622582,1755348640582,-480.0,0.00021917,3]
[379622583,1755348640591,-480.0,0.00021917,3]
[379622584,1755348640601,-480.0,0.00021917,3]
[379622585,1755348640611,-480.0,0.00021917,3]
[379622586,1755348640620,-480.0,0.00021917,3]
[379622587,1755348640630,-480.0,0.00021917,3]
[379622588,1755348640639,-480.0,0.00021917,3]
[379622589,1755348640648,-480.0,0.00021917,3]
[379622590,1755348640658,-480.0,0.00021917,3]
[379622591,1755348640667,-480.0,0.00021917,3]
[379622592,1755348640677,-480.0,0.00021917,3]
[379622593,1755348640686,-480.0,0.00021917,3]
[379622594,1755348640696,-480.0,0.00021917,3]
[379622595,1755348640705,-480.0,0.00021917,3]
[379622596,1755348640715,-480.0,0.00021917,3]
[379622597,1755348640724,-480.0,0.00021917,3]
[379622598,1755348640735,-340.0,0.00021917,3]
[379622599,1755348640746,-480.0,0.00021917,3]
[379622600,1755348640755,-480.0,0.00021917,3]
[379622602,1755348640764,-480.0,0.00021917,3]
[379622603,1755348640776,-480.0,0.00021917,3]
[379622605,1755348640786,-759.58,0.00021917,3]
[379622607,1755348640795,-480.0,0.00021917,3]
[379622608,1755348640804,-400.0,0.00021917,3]
[379622610,1755348640813,-2016.7,0.00021917,3]
[379622611,1755348640822,-480.0,0.00021917,3]
[379622612,1755348640832,-480.0,0.00021917,3]
[379622614,1755348640841,-480.0,0.00021917,3]
[379622616,1755348640852,-818.09,0.00021917,3]
[379622618,1755348640863,-480.0,0.00021917,3]
[379622620,1755348640872,-640.14,0.00021917,3]
[379622622,1755348640882,-480.0,0.00021917,3]
[379622624,1755348640891,-480.0,0.00021917,3]
[379622626,1755348640901,-480.0,0.00021917,3]
[379622628,1755348640911,-460.0,0.00021917,3]
[379622629,1755348640919,-480.0,0.00021917,3]
[379622631,1755348640929,-480.0,0.00021917,3]
[379622633,1755348640939,-480.0,0.00021917,3]
[379622635,1755348640949,-480.0,0.00021917,3]
[379622637,1755348640958,-480.0,0.00021917,3]
[379622639,1755348640967,-480.0,0.00021917,3]
[379622641,1755348640976,-480.0,0.00021917,3]
[379622643,1755348640986,-480.0,0.00021917,3]
[379622645,1755348640995,-480.0,0.00021917,3]
[379622647,1755348641004,-480.0,0.00021917,3]
[379622649,1755348641013,-480.0,0.00021917,3]
[379622651,1755348641023,-443.66198058,0.00021917,3]
[379622653,1755348641032,-500.0,0.00021917,3]
[379622655,1755348641041,-480.0,0.00021917,3]
[379622657,1755348641050,-480.0,0.00021917,3]
[379622659,1755348641059,-480.0,0.00021917,3]
[379622661,1755348641069,-480.0,0.00021917,3]
[379622663,1755348641078,-480.0,0.00021917,3]
[379622665,1755348641088,-480.0,0.00021917,3]
[379622667,1755348641098,-405.93519829,0.00021917,3]
[379622668,1755348641107,-480.0,0.00021917,3]
[379622670,1755348641117,-1143.41,0.00021917,3]
[379622672,1755348641126,-480.0,0.00021917,3]
[379622674,1755348641135,-480.0,0.00021917,3]
[379622676,1755348641144,-480.0,0.00021917,3]
[379622678,1755348641153,-480.0,0.00021917,3]
[379622680,1755348641163,-480.0,0.00021917,3]
[379622682,1755348641172,-480.0,0.00021917,3]
[379622683,1755348641182,-480.0,0.00021917,3]
[379622684,1755348641192,-480.0,0.00021917,3]
[379622686,1755348641203,-739.95,0.00021917,3]
[379622687,1755348641212,-480.0,0.00021917,3]
[379622688,1755348641222,-480.0,0.00021917,3]
[379622689,1755348641231,-8979.65,0.00021917,3]
[379622690,1755348641241,-480.0,0.00021917,3]
[379622691,1755348641251,-570.52,0.00021917,3]
[379622692,1755348641260,-2379.44,0.00021917,3]
[379622693,1755348641269,-480.0,0.00021917,3]
[379622694,1755348641278,-1132.94,0.00021917,3]
[379622695,1755348641287,-480.0,0.00021917,3]
[379622696,1755348641296,-480.0,0.00021917,3]
[379622697,1755348641306,-480.0,0.00021917,3]
[379622698,1755348641316,-200.13795879,0.00021917,3]
[379622699,1755348641325,-480.0,0.00021917,3]
[379622700,1755348641335,-460.0,0.00021917,3]
[379622701,1755348641344,-480.0,0.00021917,3]
[379622702,1755348641354,-480.0,0.00021917,3]
[379622703,1755348641363,-480.0,0.00021917,3]
[379622704,1755348641373,-443.12660417,0.00021917,3]
[379622706,1755348641383,-480.0,0.00021917,3]
[379622707,1755348641392,-480.0,0.00021917,3]
[379622708,1755348641403,-480.0,0.00021917,3]
[379622709,1755348641412,-480.0,0.00021917,3]
[379622710,1755348641422,-480.0,0.00021917,3]
[379622711,1755348641431,-480.0,0.00021917,3]
[379622712,1755348641441,-480.0,0.00021917,3]
[379622713,1755348641451,-480.0,0.00021917,3]
[379622714,1755348641460,-480.0,0.00021917,3]
[379622715,1755348641470,-480.0,0.00021917,3]
[379622716,1755348641479,-480.0,0.00021917,3]
[379622717,1755348641488,-480.0,0.00021917,3]
[379622718,1755348641497,-480.0,0.00021917,3]
[379622719,1755348641506,-713.27,0.00021917,3]
[379622720,1755348641515,-713.27,0.00021917,3]
[379622721,1755348641524,-713.27,0.00021917,3]
[379622722,1755348641534,-713.27,0.00021917,3]
[379622723,1755348641543,-713.27,0.00021917,3]
[379622724,1755348641552,-480.0,0.00021917,3]
[379622725,1755348641561,-713.27,0.00021917,3]
[379622726,1755348641570,-713.27,0.00021917,3]
[379622727,1755348641580,-713.27,0.00021917,3]
[379622728,1755348641589,-713.27,0.00021917,3]
[379622729,1755348641598,-713.27,0.00021917,3]
[379622730,1755348641608,-713.27,0.00021917,3]
[379622731,1755348641616,-480.0,0.00021917,3]
[379622732,1755348641626,-713.27,0.00021917,3]
[379622733,1755348641635,-713.27,0.00021917,3]
[379622734,1755348641644,-713.27,0.00021917,3]
[379622735,1755348641654,-713.27,0.00021917,3]
[379622736,1755348641663,-713.27,0.00021917,3]
[379622737,1755348641673,-713.27,0.00021917,3]
[379622738,1755348641682,-713.27,0.00021917,3]
[379622739,1755348641694,-713.27,0.00021917,3]
[379622740,1755348641703,-480.0,0.00021917,3]
[379622741,1755348641712,-713.27,0.00021917,3]
[379622742,1755348641722,-713.27,0.00021917,3]
[379622743,1755348641731,-713.27,0.00021917,3]
[379622744,1755348641740,-713.27,0.00021917,3]
[379622745,1755348641749,-713.48296629,0.00021917,3]
[379622746,1755348641759,-480.0,0.00021917,3]
[379622747,1755348641768,-480.0,0.00021917,3]
[379622748,1755348641781,-480.0,0.00021917,3]
[379622749,1755348641791,-480.0,0.00021917,3]
[379622750,1755348641800,-480.0,0.00021917,3]
[379622751,1755348641809,-480.0,0.00021917,3]
[379622752,1755348641819,-480.0,0.00021917,3]
[379622753,1755348641828,-724.65,0.00021917,3]
[379622754,1755348641837,-480.0,0.00021917,3]
[379622755,1755348641848,-300.0,0.00021917,3]
[379622756,1755348641857,-480.0,0.00021917,3]
[379622757,1755348641866,-480.0,0.00021917,3]
[379622758,1755348641875,-185.76293035,0.00021917,3]
[379622759,1755348641884,-480.0,0.00021917,3]
[379622760,1755348641894,-1263.57,0.00021917,3]
[379622761,1755348641903,-480.0,0.00021917,3]